Workbook

Sheet Sheet1
A1: x (10-10 m) | B1: U(x) (eV) | C1: k^2(x) (1010 m)-2 | D1: psi(x) | E1: E (eV) | I1: finite a | J1: harmonic | K1: triangle
A2: -5 | B2: 500 | C2: =0.264*($E$2-B2) -> -131.9736 | D2: 0 | E2: =Sheet2!B15 -> 0.1 | I2: =IF(ABS(A2)-0.001>=Sheet2!$C$6/2,Sheet2!$C$7*Sheet2!$C$8,0) -> 500 | J2: =0.5*Sheet2!$C$9*A2^2 -> 6250 | K2: =Sheet2!$C$10*ABS(A2) -> 2500
A3: =+A2+0.02 -> -4.98 | B3: 500 | C3: -131.9736 | D3: 1e-80 | I3: =IF(ABS(A3)-0.001>=Sheet2!$C$6/2,Sheet2!$C$7*Sheet2!$C$8,0) -> 500 | J3: =0.5*Sheet2!$C$9*A3^2 -> 6200.1 | K3: =Sheet2!$C$10*ABS(A3) -> 2490
A4: =+A3+0.02 -> -4.96 | B4: 500 | C4: -131.9736 | D4: =(2- 0.0004*C3)*D3-D2 -> 2.05278944e-80 | I4: =IF(ABS(A4)-0.001>=Sheet2!$C$6/2,Sheet2!$C$7*Sheet2!$C$8,0) -> 500 | J4: =0.5*Sheet2!$C$9*A4^2 -> 6150.4 | K4: =Sheet2!$C$10*ABS(A4) -> 2480
A5: -4.94 | B5: 500 | C5: -131.9736 | D5: 3.213944485e-80 | I5: =IF(ABS(A5)-0.001>=Sheet2!$C$6/2,Sheet2!$C$7*Sheet2!$C$8,0) -> 500 | J5: =0.5*Sheet2!$C$9*A5^2 -> 6100.9 | K5: =Sheet2!$C$10*ABS(A5) -> 2470
A6: -4.92 | B6: 500 | C6: -131.9736 | D6: 4.54476186e-80 | I6: =IF(ABS(A6)-0.001>=Sheet2!$C$6/2,Sheet2!$C$7*Sheet2!$C$8,0) -> 500 | J6: =0.5*Sheet2!$C$9*A6^2 -> 6051.6 | K6: =Sheet2!$C$10*ABS(A6) -> 2460
A7: -4.9 | B7: 500 | C7: -131.9736 | D7: 6.115494668e-80 | I7: =IF(ABS(A7)-0.001>=Sheet2!$C$6/2,Sheet2!$C$7*Sheet2!$C$8,0) -> 500 | J7: =0.5*Sheet2!$C$9*A7^2 -> 6002.5 | K7: =Sheet2!$C$10*ABS(A7) -> 2450
A8: -4.88 | B8: 500 | C8: -131.9736 | D8: 8.009061014e-80 | I8: =IF(ABS(A8)-0.001>=Sheet2!$C$6/2,Sheet2!$C$7*Sheet2!$C$8,0) -> 500 | J8: =0.5*Sheet2!$C$9*A8^2 -> 5953.6 | K8: =Sheet2!$C$10*ABS(A8) -> 2440
A9: -4.86 | B9: 500 | C9: -131.9736 | D9: 1.032542121e-79 | I9: =IF(ABS(A9)-0.001>=Sheet2!$C$6/2,Sheet2!$C$7*Sheet2!$C$8,0) -> 500 | J9: =0.5*Sheet2!$C$9*A9^2 -> 5904.9 | K9: =Sheet2!$C$10*ABS(A9) -> 2430
A10: -4.84 | B10: 500 | C10: -131.9736 | D10: 1.31868546e-79 | I10: =IF(ABS(A10)-0.001>=Sheet2!$C$6/2,Sheet2!$C$7*Sheet2!$C$8,0) -> 500 | J10: =0.5*Sheet2!$C$9*A10^2 -> 5856.4 | K10: =Sheet2!$C$10*ABS(A10) -> 2420
A11: -4.82 | B11: 500 | C11: -131.9736 | D11: 1.674441467e-79 | I11: =IF(ABS(A11)-0.001>=Sheet2!$C$6/2,Sheet2!$C$7*Sheet2!$C$8,0) -> 500 | J11: =0.5*Sheet2!$C$9*A11^2 -> 5808.1 | K11: =Sheet2!$C$10*ABS(A11) -> 2410
A12: -4.8 | B12: 500 | C12: -131.9736 | D12: 2.118590301e-79 | I12: =IF(ABS(A12)-0.001>=Sheet2!$C$6/2,Sheet2!$C$7*Sheet2!$C$8,0) -> 500 | J12: =0.5*Sheet2!$C$9*A12^2 -> 5760 | K12: =Sheet2!$C$10*ABS(A12) -> 2400
A13: -4.78 | B13: 500 | C13: -131.9736 | D13: 2.67457833e-79 | I13: =IF(ABS(A13)-0.001>=Sheet2!$C$6/2,Sheet2!$C$7*Sheet2!$C$8,0) -> 500 | J13: =0.5*Sheet2!$C$9*A13^2 -> 5712.1 | K13: =Sheet2!$C$10*ABS(A13) -> 2390
A14: -4.76 | B14: 500 | C14: -131.9736 | D14: 3.371755852e-79 | I14: =IF(ABS(A14)-0.001>=Sheet2!$C$6/2,Sheet2!$C$7*Sheet2!$C$8,0) -> 500 | J14: =0.5*Sheet2!$C$9*A14^2 -> 5664.4 | K14: =Sheet2!$C$10*ABS(A14) -> 2380
A15: -4.74 | B15: 500 | C15: -131.9736 | D15: 4.246926477e-79 | I15: =IF(ABS(A15)-0.001>=Sheet2!$C$6/2,Sheet2!$C$7*Sheet2!$C$8,0) -> 500 | J15: =0.5*Sheet2!$C$9*A15^2 -> 5616.9 | K15: =Sheet2!$C$10*ABS(A15) -> 2370
A16: -4.72 | B16: 500 | C16: -131.9736 | D16: 5.346289973e-79 | I16: =IF(ABS(A16)-0.001>=Sheet2!$C$6/2,Sheet2!$C$7*Sheet2!$C$8,0) -> 500 | J16: =0.5*Sheet2!$C$9*A16^2 -> 5569.6 | K16: =Sheet2!$C$10*ABS(A16) -> 2360
A17: -4.7 | B17: 500 | C17: -131.9736 | D17: 6.727881122e-79 | I17: =IF(ABS(A17)-0.001>=Sheet2!$C$6/2,Sheet2!$C$7*Sheet2!$C$8,0) -> 500 | J17: =0.5*Sheet2!$C$9*A17^2 -> 5522.5 | K17: =Sheet2!$C$10*ABS(A17) -> 2350
A18: -4.68 | B18: 500 | C18: -131.9736 | D18: 8.464633348e-79 | I18: =IF(ABS(A18)-0.001>=Sheet2!$C$6/2,Sheet2!$C$7*Sheet2!$C$8,0) -> 500 | J18: =0.5*Sheet2!$C$9*A18^2 -> 5475.6 | K18: =Sheet2!$C$10*ABS(A18) -> 2340
A19: -4.66 | B19: 500 | C19: -131.9736 | D19: 1.064822883e-78 | I19: =IF(ABS(A19)-0.001>=Sheet2!$C$6/2,Sheet2!$C$7*Sheet2!$C$8,0) -> 500 | J19: =0.5*Sheet2!$C$9*A19^2 -> 5428.9 | K19: =Sheet2!$C$10*ABS(A19) -> 2330
A20: -4.64 | B20: 500 | C20: -131.9736 | D20: 1.339393835e-78 | I20: =IF(ABS(A20)-0.001>=Sheet2!$C$6/2,Sheet2!$C$7*Sheet2!$C$8,0) -> 500 | J20: =0.5*Sheet2!$C$9*A20^2 -> 5382.4 | K20: =Sheet2!$C$10*ABS(A20) -> 2320
A21: -4.62 | B21: 500 | C21: -131.9736 | D21: 1.684670637e-78 | I21: =IF(ABS(A21)-0.001>=Sheet2!$C$6/2,Sheet2!$C$7*Sheet2!$C$8,0) -> 500 | J21: =0.5*Sheet2!$C$9*A21^2 -> 5336.1 | K21: =Sheet2!$C$10*ABS(A21) -> 2310
A22: -4.6 | B22: 500 | C22: -131.9736 | D22: 2.118880258e-78 | I22: =IF(ABS(A22)-0.001>=Sheet2!$C$6/2,Sheet2!$C$7*Sheet2!$C$8,0) -> 500 | J22: =0.5*Sheet2!$C$9*A22^2 -> 5290 | K22: =Sheet2!$C$10*ABS(A22) -> 2300
A23: -4.58 | B23: 500 | C23: -131.9736 | D23: 2.664944382e-78 | I23: =IF(ABS(A23)-0.001>=Sheet2!$C$6/2,Sheet2!$C$7*Sheet2!$C$8,0) -> 500 | J23: =0.5*Sheet2!$C$9*A23^2 -> 5244.1 | K23: =Sheet2!$C$10*ABS(A23) -> 2290
A24: -4.56 | B24: 500 | C24: -131.9736 | D24: 3.351689428e-78 | I24: =IF(ABS(A24)-0.001>=Sheet2!$C$6/2,Sheet2!$C$7*Sheet2!$C$8,0) -> 500 | J24: =0.5*Sheet2!$C$9*A24^2 -> 5198.4 | K24: =Sheet2!$C$10*ABS(A24) -> 2280
A25: -4.54 | B25: 500 | C25: -131.9736 | D25: 4.215368281e-78 | I25: =IF(ABS(A25)-0.001>=Sheet2!$C$6/2,Sheet2!$C$7*Sheet2!$C$8,0) -> 500 | J25: =0.5*Sheet2!$C$9*A25^2 -> 5152.9 | K25: =Sheet2!$C$10*ABS(A25) -> 2270
A26: -4.52 | B26: 500 | C26: -131.9736 | D26: 5.301574066e-78 | I26: =IF(ABS(A26)-0.001>=Sheet2!$C$6/2,Sheet2!$C$7*Sheet2!$C$8,0) -> 500 | J26: =0.5*Sheet2!$C$9*A26^2 -> 5107.6 | K26: =Sheet2!$C$10*ABS(A26) -> 2260
A27: -4.5 | B27: 500 | C27: -131.9736 | D27: 6.667646976e-78 | I27: =IF(ABS(A27)-0.001>=Sheet2!$C$6/2,Sheet2!$C$7*Sheet2!$C$8,0) -> 500 | J27: =0.5*Sheet2!$C$9*A27^2 -> 5062.5 | K27: =Sheet2!$C$10*ABS(A27) -> 2250
A28: -4.48 | B28: 500 | C28: -131.9736 | D28: 8.385701237e-78 | I28: =IF(ABS(A28)-0.001>=Sheet2!$C$6/2,Sheet2!$C$7*Sheet2!$C$8,0) -> 500 | J28: =0.5*Sheet2!$C$9*A28^2 -> 5017.6 | K28: =Sheet2!$C$10*ABS(A28) -> 2240
A29: -4.46 | B29: 500 | C29: -131.9736 | D29: 1.054643197e-77 | I29: =IF(ABS(A29)-0.001>=Sheet2!$C$6/2,Sheet2!$C$7*Sheet2!$C$8,0) -> 500 | J29: =0.5*Sheet2!$C$9*A29^2 -> 4972.9 | K29: =Sheet2!$C$10*ABS(A29) -> 2230
A30: -4.44 | B30: 500 | C30: -131.9736 | D30: 1.326390294e-77 | I30: =IF(ABS(A30)-0.001>=Sheet2!$C$6/2,Sheet2!$C$7*Sheet2!$C$8,0) -> 500 | J30: =0.5*Sheet2!$C$9*A30^2 -> 4928.4 | K30: =Sheet2!$C$10*ABS(A30) -> 2220
A31: -4.42 | B31: 500 | C31: -131.9736 | D31: 1.668156792e-77 | I31: =IF(ABS(A31)-0.001>=Sheet2!$C$6/2,Sheet2!$C$7*Sheet2!$C$8,0) -> 500 | J31: =0.5*Sheet2!$C$9*A31^2 -> 4884.1 | K31: =Sheet2!$C$10*ABS(A31) -> 2210
A32: -4.4 | B32: 500 | C32: -131.9736 | D32: 2.097984353e-77 | I32: =IF(ABS(A32)-0.001>=Sheet2!$C$6/2,Sheet2!$C$7*Sheet2!$C$8,0) -> 500 | J32: =0.5*Sheet2!$C$9*A32^2 -> 4840 | K32: =Sheet2!$C$10*ABS(A32) -> 2200
A33: -4.38 | B33: 500 | C33: -131.9736 | D33: 2.638563333e-77 | I33: =IF(ABS(A33)-0.001>=Sheet2!$C$6/2,Sheet2!$C$7*Sheet2!$C$8,0) -> 500 | J33: =0.5*Sheet2!$C$9*A33^2 -> 4796.1 | K33: =Sheet2!$C$10*ABS(A33) -> 2190
A34: -4.36 | B34: 500 | C34: -131.9736 | D34: 3.318430593e-77 | I34: =IF(ABS(A34)-0.001>=Sheet2!$C$6/2,Sheet2!$C$7*Sheet2!$C$8,0) -> 500 | J34: =0.5*Sheet2!$C$9*A34^2 -> 4752.4 | K34: =Sheet2!$C$10*ABS(A34) -> 2180
A35: -4.34 | B35: 500 | C35: -131.9736 | D35: 4.173475946e-77 | I35: =IF(ABS(A35)-0.001>=Sheet2!$C$6/2,Sheet2!$C$7*Sheet2!$C$8,0) -> 500 | J35: =0.5*Sheet2!$C$9*A35^2 -> 4708.9 | K35: =Sheet2!$C$10*ABS(A35) -> 2170
A36: -4.32 | B36: 500 | C36: -131.9736 | D36: 5.248836758e-77 | I36: =IF(ABS(A36)-0.001>=Sheet2!$C$6/2,Sheet2!$C$7*Sheet2!$C$8,0) -> 500 | J36: =0.5*Sheet2!$C$9*A36^2 -> 4665.6 | K36: =Sheet2!$C$10*ABS(A36) -> 2160
A37: -4.3 | B37: 500 | C37: -131.9736 | D37: 6.601280722e-77 | I37: =IF(ABS(A37)-0.001>=Sheet2!$C$6/2,Sheet2!$C$7*Sheet2!$C$8,0) -> 500 | J37: =0.5*Sheet2!$C$9*A37^2 -> 4622.5 | K37: =Sheet2!$C$10*ABS(A37) -> 2150
A38: -4.28 | B38: 500 | C38: -131.9736 | D38: 8.302202599e-77 | I38: =IF(ABS(A38)-0.001>=Sheet2!$C$6/2,Sheet2!$C$7*Sheet2!$C$8,0) -> 500 | J38: =0.5*Sheet2!$C$9*A38^2 -> 4579.6 | K38: =Sheet2!$C$10*ABS(A38) -> 2140
A39: -4.26 | B39: 500 | C39: -131.9736 | D39: 1.04413931e-76 | I39: =IF(ABS(A39)-0.001>=Sheet2!$C$6/2,Sheet2!$C$7*Sheet2!$C$8,0) -> 500 | J39: =0.5*Sheet2!$C$9*A39^2 -> 4536.9 | K39: =Sheet2!$C$10*ABS(A39) -> 2130
A40: -4.24 | B40: 500 | C40: -131.9736 | D40: 1.31317789e-76 | I40: =IF(ABS(A40)-0.001>=Sheet2!$C$6/2,Sheet2!$C$7*Sheet2!$C$8,0) -> 500 | J40: =0.5*Sheet2!$C$9*A40^2 -> 4494.4 | K40: =Sheet2!$C$10*ABS(A40) -> 2120
A41: -4.22 | B41: 500 | C41: -131.9736 | D41: 1.651538395e-76 | I41: =IF(ABS(A41)-0.001>=Sheet2!$C$6/2,Sheet2!$C$7*Sheet2!$C$8,0) -> 500 | J41: =0.5*Sheet2!$C$9*A41^2 -> 4452.1 | K41: =Sheet2!$C$10*ABS(A41) -> 2110
A42: -4.2 | B42: 500 | C42: -131.9736 | D42: 2.077082687e-76 | I42: =IF(ABS(A42)-0.001>=Sheet2!$C$6/2,Sheet2!$C$7*Sheet2!$C$8,0) -> 500 | J42: =0.5*Sheet2!$C$9*A42^2 -> 4410 | K42: =Sheet2!$C$10*ABS(A42) -> 2100
A43: -4.18 | B43: 500 | C43: -131.9736 | D43: 2.612275012e-76 | I43: =IF(ABS(A43)-0.001>=Sheet2!$C$6/2,Sheet2!$C$7*Sheet2!$C$8,0) -> 500 | J43: =0.5*Sheet2!$C$9*A43^2 -> 4368.1 | K43: =Sheet2!$C$10*ABS(A43) -> 2090
A44: -4.16 | B44: 500 | C44: -131.9736 | D44: 3.285367871e-76 | I44: =IF(ABS(A44)-0.001>=Sheet2!$C$6/2,Sheet2!$C$7*Sheet2!$C$8,0) -> 500 | J44: =0.5*Sheet2!$C$9*A44^2 -> 4326.4 | K44: =Sheet2!$C$10*ABS(A44) -> 2080
A45: -4.14 | B45: 500 | C45: -131.9736 | D45: 4.13189346e-76 | I45: =IF(ABS(A45)-0.001>=Sheet2!$C$6/2,Sheet2!$C$7*Sheet2!$C$8,0) -> 500 | J45: =0.5*Sheet2!$C$9*A45^2 -> 4284.9 | K45: =Sheet2!$C$10*ABS(A45) -> 2070
A46: -4.12 | B46: 500 | C46: -131.9736 | D46: 5.196539391e-76 | I46: =IF(ABS(A46)-0.001>=Sheet2!$C$6/2,Sheet2!$C$7*Sheet2!$C$8,0) -> 500 | J46: =0.5*Sheet2!$C$9*A46^2 -> 4243.6 | K46: =Sheet2!$C$10*ABS(A46) -> 2060
A47: -4.1 | B47: 500 | C47: -131.9736 | D47: 6.535507726e-76 | I47: =IF(ABS(A47)-0.001>=Sheet2!$C$6/2,Sheet2!$C$7*Sheet2!$C$8,0) -> 500 | J47: =0.5*Sheet2!$C$9*A47^2 -> 4202.5 | K47: =Sheet2!$C$10*ABS(A47) -> 2050
A48: -4.08 | B48: 500 | C48: -131.9736 | D48: 8.219481855e-76 | I48: =IF(ABS(A48)-0.001>=Sheet2!$C$6/2,Sheet2!$C$7*Sheet2!$C$8,0) -> 500 | J48: =0.5*Sheet2!$C$9*A48^2 -> 4161.6 | K48: =Sheet2!$C$10*ABS(A48) -> 2040
A49: -4.06 | B49: 500 | C49: -131.9736 | D49: 1.033735783e-75 | I49: =IF(ABS(A49)-0.001>=Sheet2!$C$6/2,Sheet2!$C$7*Sheet2!$C$8,0) -> 500 | J49: =0.5*Sheet2!$C$9*A49^2 -> 4120.9 | K49: =Sheet2!$C$10*ABS(A49) -> 2030
A50: -4.04 | B50: 500 | C50: -131.9736 | D50: 1.300093713e-75 | I50: =IF(ABS(A50)-0.001>=Sheet2!$C$6/2,Sheet2!$C$7*Sheet2!$C$8,0) -> 500 | J50: =0.5*Sheet2!$C$9*A50^2 -> 4080.4 | K50: =Sheet2!$C$10*ABS(A50) -> 2020
A51: -4.02 | B51: 500 | C51: -131.9736 | D51: 1.635082863e-75 | I51: =IF(ABS(A51)-0.001>=Sheet2!$C$6/2,Sheet2!$C$7*Sheet2!$C$8,0) -> 500 | J51: =0.5*Sheet2!$C$9*A51^2 -> 4040.1 | K51: =Sheet2!$C$10*ABS(A51) -> 2010
A52: -4 | B52: 500 | C52: -131.9736 | D52: 2.056387121e-75 | I52: =IF(ABS(A52)-0.001>=Sheet2!$C$6/2,Sheet2!$C$7*Sheet2!$C$8,0) -> 500 | J52: =0.5*Sheet2!$C$9*A52^2 -> 4000 | K52: =Sheet2!$C$10*ABS(A52) -> 2000
A53: -3.98 | B53: 500 | C53: -131.9736 | D53: 2.586246903e-75 | I53: =IF(ABS(A53)-0.001>=Sheet2!$C$6/2,Sheet2!$C$7*Sheet2!$C$8,0) -> 500 | J53: =0.5*Sheet2!$C$9*A53^2 -> 3960.1 | K53: =Sheet2!$C$10*ABS(A53) -> 1990
A54: -3.96 | B54: 500 | C54: -131.9736 | D54: 3.252633211e-75 | I54: =IF(ABS(A54)-0.001>=Sheet2!$C$6/2,Sheet2!$C$7*Sheet2!$C$8,0) -> 500 | J54: =0.5*Sheet2!$C$9*A54^2 -> 3920.4 | K54: =Sheet2!$C$10*ABS(A54) -> 1980
A55: -3.94 | B55: 500 | C55: -131.9736 | D55: 4.090724206e-75 | I55: =IF(ABS(A55)-0.001>=Sheet2!$C$6/2,Sheet2!$C$7*Sheet2!$C$8,0) -> 500 | J55: =0.5*Sheet2!$C$9*A55^2 -> 3880.9 | K55: =Sheet2!$C$10*ABS(A55) -> 1970
A56: -3.92 | B56: 500 | C56: -131.9736 | D56: 5.14476224e-75 | I56: =IF(ABS(A56)-0.001>=Sheet2!$C$6/2,Sheet2!$C$7*Sheet2!$C$8,0) -> 500 | J56: =0.5*Sheet2!$C$9*A56^2 -> 3841.6 | K56: =Sheet2!$C$10*ABS(A56) -> 1960
A57: -3.9 | B57: 500 | C57: -131.9736 | D57: 6.470389391e-75 | I57: =IF(ABS(A57)-0.001>=Sheet2!$C$6/2,Sheet2!$C$7*Sheet2!$C$8,0) -> 500 | J57: =0.5*Sheet2!$C$9*A57^2 -> 3802.5 | K57: =Sheet2!$C$10*ABS(A57) -> 1950
A58: -3.88 | B58: 500 | C58: -131.9736 | D58: 8.137584776e-75 | I58: =IF(ABS(A58)-0.001>=Sheet2!$C$6/2,Sheet2!$C$7*Sheet2!$C$8,0) -> 500 | J58: =0.5*Sheet2!$C$9*A58^2 -> 3763.6 | K58: =Sheet2!$C$10*ABS(A58) -> 1940
A59: -3.86 | B59: 500 | C59: -131.9736 | D59: 1.02343587e-74 | I59: =IF(ABS(A59)-0.001>=Sheet2!$C$6/2,Sheet2!$C$7*Sheet2!$C$8,0) -> 500 | J59: =0.5*Sheet2!$C$9*A59^2 -> 3724.9 | K59: =Sheet2!$C$10*ABS(A59) -> 1930
A60: -3.84 | B60: 500 | C60: -131.9736 | D60: 1.28713987e-74 | I60: =IF(ABS(A60)-0.001>=Sheet2!$C$6/2,Sheet2!$C$7*Sheet2!$C$8,0) -> 500 | J60: =0.5*Sheet2!$C$9*A60^2 -> 3686.4 | K60: =Sheet2!$C$10*ABS(A60) -> 1920
A61: -3.82 | B61: 500 | C61: -131.9736 | D61: 1.618791262e-74 | I61: =IF(ABS(A61)-0.001>=Sheet2!$C$6/2,Sheet2!$C$7*Sheet2!$C$8,0) -> 500 | J61: =0.5*Sheet2!$C$9*A61^2 -> 3648.1 | K61: =Sheet2!$C$10*ABS(A61) -> 1910
A62: -3.8 | B62: 500 | C62: -131.9736 | D62: 2.035897738e-74 | I62: =IF(ABS(A62)-0.001>=Sheet2!$C$6/2,Sheet2!$C$7*Sheet2!$C$8,0) -> 500 | J62: =0.5*Sheet2!$C$9*A62^2 -> 3610 | K62: =Sheet2!$C$10*ABS(A62) -> 1900
A63: -3.78 | B63: 500 | C63: -131.9736 | D63: 2.560478116e-74 | I63: =IF(ABS(A63)-0.001>=Sheet2!$C$6/2,Sheet2!$C$7*Sheet2!$C$8,0) -> 500 | J63: =0.5*Sheet2!$C$9*A63^2 -> 3572.1 | K63: =Sheet2!$C$10*ABS(A63) -> 1890
A64: -3.76 | B64: 500 | C64: -131.9736 | D64: 3.220224699e-74 | I64: =IF(ABS(A64)-0.001>=Sheet2!$C$6/2,Sheet2!$C$7*Sheet2!$C$8,0) -> 500 | J64: =0.5*Sheet2!$C$9*A64^2 -> 3534.4 | K64: =Sheet2!$C$10*ABS(A64) -> 1880
A65: -3.74 | B65: 500 | C65: -131.9736 | D65: 4.049965142e-74 | I65: =IF(ABS(A65)-0.001>=Sheet2!$C$6/2,Sheet2!$C$7*Sheet2!$C$8,0) -> 500 | J65: =0.5*Sheet2!$C$9*A65^2 -> 3496.9 | K65: =Sheet2!$C$10*ABS(A65) -> 1870
A66: -3.72 | B66: 500 | C66: =0.264*($E$2-B66) -> -131.9736 | D66: 5.093500976e-74 | I66: =IF(ABS(A66)-0.001>=Sheet2!$C$6/2,Sheet2!$C$7*Sheet2!$C$8,0) -> 500 | J66: =0.5*Sheet2!$C$9*A66^2 -> 3459.6 | K66: =Sheet2!$C$10*ABS(A66) -> 1860
A67: -3.7 | B67: 500 | C67: -131.9736 | D67: 6.405919874e-74 | I67: =IF(ABS(A67)-0.001>=Sheet2!$C$6/2,Sheet2!$C$7*Sheet2!$C$8,0) -> 500 | J67: =0.5*Sheet2!$C$9*A67^2 -> 3422.5 | K67: =Sheet2!$C$10*ABS(A67) -> 1850
A68: =+A67+0.02 -> -3.68 | B68: 500 | C68: -131.9736 | D68: =(2- 0.0004*C67)*D67-D66 -> 8.056503695e-74 | I68: =IF(ABS(A68)-0.001>=Sheet2!$C$6/2,Sheet2!$C$7*Sheet2!$C$8,0) -> 500 | J68: =0.5*Sheet2!$C$9*A68^2 -> 3385.6 | K68: =Sheet2!$C$10*ABS(A68) -> 1840
A69: -3.66 | B69: 500 | C69: -131.9736 | D69: 1.013238583e-73 | I69: =IF(ABS(A69)-0.001>=Sheet2!$C$6/2,Sheet2!$C$7*Sheet2!$C$8,0) -> 500 | J69: =0.5*Sheet2!$C$9*A69^2 -> 3348.9 | K69: =Sheet2!$C$10*ABS(A69) -> 1830
A70: -3.64 | B70: 500 | C70: -131.9736 | D70: 1.274315095e-73 | I70: =IF(ABS(A70)-0.001>=Sheet2!$C$6/2,Sheet2!$C$7*Sheet2!$C$8,0) -> 500 | J70: =0.5*Sheet2!$C$9*A70^2 -> 3312.4 | K70: =Sheet2!$C$10*ABS(A70) -> 1820
A71: -3.62 | B71: 500 | C71: -131.9736 | D71: 1.602661986e-73 | I71: =IF(ABS(A71)-0.001>=Sheet2!$C$6/2,Sheet2!$C$7*Sheet2!$C$8,0) -> 500 | J71: =0.5*Sheet2!$C$9*A71^2 -> 3276.1 | K71: =Sheet2!$C$10*ABS(A71) -> 1810
A72: -3.6 | B72: 500 | C72: -131.9736 | D72: 2.015612507e-73 | I72: =IF(ABS(A72)-0.001>=Sheet2!$C$6/2,Sheet2!$C$7*Sheet2!$C$8,0) -> 500 | J72: =0.5*Sheet2!$C$9*A72^2 -> 3240 | K72: =Sheet2!$C$10*ABS(A72) -> 1800
A73: -3.58 | B73: 500 | C73: -131.9736 | D73: 2.534966083e-73 | I73: =IF(ABS(A73)-0.001>=Sheet2!$C$6/2,Sheet2!$C$7*Sheet2!$C$8,0) -> 500 | J73: =0.5*Sheet2!$C$9*A73^2 -> 3204.1 | K73: =Sheet2!$C$10*ABS(A73) -> 1790
A74: -3.56 | B74: 500 | C74: -131.9736 | D74: 3.188139098e-73 | I74: =IF(ABS(A74)-0.001>=Sheet2!$C$6/2,Sheet2!$C$7*Sheet2!$C$8,0) -> 500 | J74: =0.5*Sheet2!$C$9*A74^2 -> 3168.4 | K74: =Sheet2!$C$10*ABS(A74) -> 1780
A75: -3.54 | B75: 500 | C75: -131.9736 | D75: 4.009612192e-73 | I75: =IF(ABS(A75)-0.001>=Sheet2!$C$6/2,Sheet2!$C$7*Sheet2!$C$8,0) -> 500 | J75: =0.5*Sheet2!$C$9*A75^2 -> 3132.9 | K75: =Sheet2!$C$10*ABS(A75) -> 1770
A76: -3.52 | B76: 500 | C76: -131.9736 | D76: 5.042750467e-73 | I76: =IF(ABS(A76)-0.001>=Sheet2!$C$6/2,Sheet2!$C$7*Sheet2!$C$8,0) -> 500 | J76: =0.5*Sheet2!$C$9*A76^2 -> 3097.6 | K76: =Sheet2!$C$10*ABS(A76) -> 1760
A77: -3.5 | B77: 500 | C77: -131.9736 | D77: 6.342092716e-73 | I77: =IF(ABS(A77)-0.001>=Sheet2!$C$6/2,Sheet2!$C$7*Sheet2!$C$8,0) -> 500 | J77: =0.5*Sheet2!$C$9*A77^2 -> 3062.5 | K77: =Sheet2!$C$10*ABS(A77) -> 1750
A78: -3.48 | B78: 500 | C78: -131.9736 | D78: 7.976230488e-73 | I78: =IF(ABS(A78)-0.001>=Sheet2!$C$6/2,Sheet2!$C$7*Sheet2!$C$8,0) -> 500 | J78: =0.5*Sheet2!$C$9*A78^2 -> 3027.6 | K78: =Sheet2!$C$10*ABS(A78) -> 1740
A79: -3.46 | B79: 500 | C79: -131.9736 | D79: 1.0031429e-72 | I79: =IF(ABS(A79)-0.001>=Sheet2!$C$6/2,Sheet2!$C$7*Sheet2!$C$8,0) -> 500 | J79: =0.5*Sheet2!$C$9*A79^2 -> 2992.9 | K79: =Sheet2!$C$10*ABS(A79) -> 1730
A80: -3.44 | B80: 500 | C80: -131.9736 | D80: 1.261618103e-72 | I80: =IF(ABS(A80)-0.001>=Sheet2!$C$6/2,Sheet2!$C$7*Sheet2!$C$8,0) -> 500 | J80: =0.5*Sheet2!$C$9*A80^2 -> 2958.4 | K80: =Sheet2!$C$10*ABS(A80) -> 1720
A81: -3.42 | B81: 500 | C81: -131.9736 | D81: 1.58669342e-72 | I81: =IF(ABS(A81)-0.001>=Sheet2!$C$6/2,Sheet2!$C$7*Sheet2!$C$8,0) -> 500 | J81: =0.5*Sheet2!$C$9*A81^2 -> 2924.1 | K81: =Sheet2!$C$10*ABS(A81) -> 1710
A82: -3.4 | B82: 500 | C82: -131.9736 | D82: 1.995529393e-72 | I82: =IF(ABS(A82)-0.001>=Sheet2!$C$6/2,Sheet2!$C$7*Sheet2!$C$8,0) -> 500 | J82: =0.5*Sheet2!$C$9*A82^2 -> 2890 | K82: =Sheet2!$C$10*ABS(A82) -> 1700
A83: -3.38 | B83: 500 | C83: -131.9736 | D83: 2.509708246e-72 | I83: =IF(ABS(A83)-0.001>=Sheet2!$C$6/2,Sheet2!$C$7*Sheet2!$C$8,0) -> 500 | J83: =0.5*Sheet2!$C$9*A83^2 -> 2856.1 | K83: =Sheet2!$C$10*ABS(A83) -> 1690
A84: -3.36 | B84: 500 | C84: -131.9736 | D84: 3.156373191e-72 | I84: =IF(ABS(A84)-0.001>=Sheet2!$C$6/2,Sheet2!$C$7*Sheet2!$C$8,0) -> 500 | J84: =0.5*Sheet2!$C$9*A84^2 -> 2822.4 | K84: =Sheet2!$C$10*ABS(A84) -> 1680
A85: -3.34 | B85: 500 | C85: -131.9736 | D85: 3.96966131e-72 | I85: =IF(ABS(A85)-0.001>=Sheet2!$C$6/2,Sheet2!$C$7*Sheet2!$C$8,0) -> 500 | J85: =0.5*Sheet2!$C$9*A85^2 -> 2788.9 | K85: =Sheet2!$C$10*ABS(A85) -> 1670
A86: -3.32 | B86: 500 | C86: -131.9736 | D86: 4.992505626e-72 | I86: =IF(ABS(A86)-0.001>=Sheet2!$C$6/2,Sheet2!$C$7*Sheet2!$C$8,0) -> 500 | J86: =0.5*Sheet2!$C$9*A86^2 -> 2755.6 | K86: =Sheet2!$C$10*ABS(A86) -> 1660
A87: -3.3 | B87: 500 | C87: -131.9736 | D87: 6.278901518e-72 | I87: =IF(ABS(A87)-0.001>=Sheet2!$C$6/2,Sheet2!$C$7*Sheet2!$C$8,0) -> 500 | J87: =0.5*Sheet2!$C$9*A87^2 -> 2722.5 | K87: =Sheet2!$C$10*ABS(A87) -> 1650
A88: -3.28 | B88: 500 | C88: -131.9736 | D88: 7.896757105e-72 | I88: =IF(ABS(A88)-0.001>=Sheet2!$C$6/2,Sheet2!$C$7*Sheet2!$C$8,0) -> 500 | J88: =0.5*Sheet2!$C$9*A88^2 -> 2689.6 | K88: =Sheet2!$C$10*ABS(A88) -> 1640
A89: -3.26 | B89: 500 | C89: -131.9736 | D89: 9.931478078e-72 | I89: =IF(ABS(A89)-0.001>=Sheet2!$C$6/2,Sheet2!$C$7*Sheet2!$C$8,0) -> 500 | J89: =0.5*Sheet2!$C$9*A89^2 -> 2656.9 | K89: =Sheet2!$C$10*ABS(A89) -> 1630
A90: -3.24 | B90: 500 | C90: -131.9736 | D90: 1.249047622e-71 | I90: =IF(ABS(A90)-0.001>=Sheet2!$C$6/2,Sheet2!$C$7*Sheet2!$C$8,0) -> 500 | J90: =0.5*Sheet2!$C$9*A90^2 -> 2624.4 | K90: =Sheet2!$C$10*ABS(A90) -> 1620
A91: -3.22 | B91: 500 | C91: -131.9736 | D91: 1.57088396e-71 | I91: =IF(ABS(A91)-0.001>=Sheet2!$C$6/2,Sheet2!$C$7*Sheet2!$C$8,0) -> 500 | J91: =0.5*Sheet2!$C$9*A91^2 -> 2592.1 | K91: =Sheet2!$C$10*ABS(A91) -> 1610
A92: -3.2 | B92: 500 | C92: -131.9736 | D92: 1.975646383e-71 | I92: =IF(ABS(A92)-0.001>=Sheet2!$C$6/2,Sheet2!$C$7*Sheet2!$C$8,0) -> 500 | J92: =0.5*Sheet2!$C$9*A92^2 -> 2560 | K92: =Sheet2!$C$10*ABS(A92) -> 1600
A93: -3.18 | B93: 500 | C93: -131.9736 | D93: 2.484702072e-71 | I93: =IF(ABS(A93)-0.001>=Sheet2!$C$6/2,Sheet2!$C$7*Sheet2!$C$8,0) -> 500 | J93: =0.5*Sheet2!$C$9*A93^2 -> 2528.1 | K93: =Sheet2!$C$10*ABS(A93) -> 1590
A94: -3.16 | B94: 500 | C94: -131.9736 | D94: 3.124923792e-71 | I94: =IF(ABS(A94)-0.001>=Sheet2!$C$6/2,Sheet2!$C$7*Sheet2!$C$8,0) -> 500 | J94: =0.5*Sheet2!$C$9*A94^2 -> 2496.4 | K94: =Sheet2!$C$10*ABS(A94) -> 1580
A95: -3.14 | B95: 500 | C95: -131.9736 | D95: 3.930108489e-71 | I95: =IF(ABS(A95)-0.001>=Sheet2!$C$6/2,Sheet2!$C$7*Sheet2!$C$8,0) -> 500 | J95: =0.5*Sheet2!$C$9*A95^2 -> 2464.9 | K95: =Sheet2!$C$10*ABS(A95) -> 1570
A96: -3.12 | B96: 500 | C96: -131.9736 | D96: 4.942761413e-71 | I96: =IF(ABS(A96)-0.001>=Sheet2!$C$6/2,Sheet2!$C$7*Sheet2!$C$8,0) -> 500 | J96: =0.5*Sheet2!$C$9*A96^2 -> 2433.6 | K96: =Sheet2!$C$10*ABS(A96) -> 1560
A97: -3.1 | B97: 500 | C97: -131.9736 | D97: 6.216339943e-71 | I97: =IF(ABS(A97)-0.001>=Sheet2!$C$6/2,Sheet2!$C$7*Sheet2!$C$8,0) -> 500 | J97: =0.5*Sheet2!$C$9*A97^2 -> 2402.5 | K97: =Sheet2!$C$10*ABS(A97) -> 1550
A98: -3.08 | B98: 500 | C98: -131.9736 | D98: 7.818075578e-71 | I98: =IF(ABS(A98)-0.001>=Sheet2!$C$6/2,Sheet2!$C$7*Sheet2!$C$8,0) -> 500 | J98: =0.5*Sheet2!$C$9*A98^2 -> 2371.6 | K98: =Sheet2!$C$10*ABS(A98) -> 1540
A99: -3.06 | B99: 500 | C99: -131.9736 | D99: 9.832523044e-71 | I99: =IF(ABS(A99)-0.001>=Sheet2!$C$6/2,Sheet2!$C$7*Sheet2!$C$8,0) -> 500 | J99: =0.5*Sheet2!$C$9*A99^2 -> 2340.9 | K99: =Sheet2!$C$10*ABS(A99) -> 1530
A100: -3.04 | B100: 500 | C100: -131.9736 | D100: 1.23660239e-70 | I100: =IF(ABS(A100)-0.001>=Sheet2!$C$6/2,Sheet2!$C$7*Sheet2!$C$8,0) -> 500 | J100: =0.5*Sheet2!$C$9*A100^2 -> 2310.4 | K100: =Sheet2!$C$10*ABS(A100) -> 1520
A101: -3.02 | B101: 500 | C101: -131.9736 | D101: 1.555232022e-70 | I101: =IF(ABS(A101)-0.001>=Sheet2!$C$6/2,Sheet2!$C$7*Sheet2!$C$8,0) -> 500 | J101: =0.5*Sheet2!$C$9*A101^2 -> 2280.1 | K101: =Sheet2!$C$10*ABS(A101) -> 1510
A102: -3 | B102: 500 | C102: -131.9736 | D102: 1.955961483e-70 | I102: =IF(ABS(A102)-0.001>=Sheet2!$C$6/2,Sheet2!$C$7*Sheet2!$C$8,0) -> 500 | J102: =0.5*Sheet2!$C$9*A102^2 -> 2250 | K102: =Sheet2!$C$10*ABS(A102) -> 1500
A103: -2.98 | B103: 500 | C103: -131.9736 | D103: 2.459945055e-70 | I103: =IF(ABS(A103)-0.001>=Sheet2!$C$6/2,Sheet2!$C$7*Sheet2!$C$8,0) -> 500 | J103: =0.5*Sheet2!$C$9*A103^2 -> 2220.1 | K103: =Sheet2!$C$10*ABS(A103) -> 1490
A104: -2.96 | B104: 500 | C104: -131.9736 | D104: 3.093787748e-70 | I104: =IF(ABS(A104)-0.001>=Sheet2!$C$6/2,Sheet2!$C$7*Sheet2!$C$8,0) -> 500 | J104: =0.5*Sheet2!$C$9*A104^2 -> 2190.4 | K104: =Sheet2!$C$10*ABS(A104) -> 1480
A105: -2.94 | B105: 500 | C105: -131.9736 | D105: 3.890949764e-70 | I105: =IF(ABS(A105)-0.001>=Sheet2!$C$6/2,Sheet2!$C$7*Sheet2!$C$8,0) -> 500 | J105: =0.5*Sheet2!$C$9*A105^2 -> 2160.9 | K105: =Sheet2!$C$10*ABS(A105) -> 1470
A106: -2.92 | B106: 500 | C106: -131.9736 | D106: 4.89351284e-70 | I106: =IF(ABS(A106)-0.001>=Sheet2!$C$6/2,Sheet2!$C$7*Sheet2!$C$8,0) -> 500 | J106: =0.5*Sheet2!$C$9*A106^2 -> 2131.6 | K106: =Sheet2!$C$10*ABS(A106) -> 1460
A107: -2.9 | B107: 500 | C107: -131.9736 | D107: 6.154401718e-70 | I107: =IF(ABS(A107)-0.001>=Sheet2!$C$6/2,Sheet2!$C$7*Sheet2!$C$8,0) -> 500 | J107: =0.5*Sheet2!$C$9*A107^2 -> 2102.5 | K107: =Sheet2!$C$10*ABS(A107) -> 1450
A108: -2.88 | B108: 500 | C108: -131.9736 | D108: 7.740178016e-70 | I108: =IF(ABS(A108)-0.001>=Sheet2!$C$6/2,Sheet2!$C$7*Sheet2!$C$8,0) -> 500 | J108: =0.5*Sheet2!$C$9*A108^2 -> 2073.6 | K108: =Sheet2!$C$10*ABS(A108) -> 1440
A109: -2.86 | B109: 500 | C109: -131.9736 | D109: 9.734553977e-70 | I109: =IF(ABS(A109)-0.001>=Sheet2!$C$6/2,Sheet2!$C$7*Sheet2!$C$8,0) -> 500 | J109: =0.5*Sheet2!$C$9*A109^2 -> 2044.9 | K109: =Sheet2!$C$10*ABS(A109) -> 1430
A110: -2.84 | B110: 500 | C110: -131.9736 | D110: 1.224281159e-69 | I110: =IF(ABS(A110)-0.001>=Sheet2!$C$6/2,Sheet2!$C$7*Sheet2!$C$8,0) -> 500 | J110: =0.5*Sheet2!$C$9*A110^2 -> 2016.4 | K110: =Sheet2!$C$10*ABS(A110) -> 1420
A111: -2.82 | B111: 500 | C111: -131.9736 | D111: 1.539736037e-69 | I111: =IF(ABS(A111)-0.001>=Sheet2!$C$6/2,Sheet2!$C$7*Sheet2!$C$8,0) -> 500 | J111: =0.5*Sheet2!$C$9*A111^2 -> 1988.1 | K111: =Sheet2!$C$10*ABS(A111) -> 1410
A112: -2.8 | B112: 500 | C112: -131.9736 | D112: 1.936472719e-69 | I112: =IF(ABS(A112)-0.001>=Sheet2!$C$6/2,Sheet2!$C$7*Sheet2!$C$8,0) -> 500 | J112: =0.5*Sheet2!$C$9*A112^2 -> 1960 | K112: =Sheet2!$C$10*ABS(A112) -> 1400
A113: -2.78 | B113: 500 | C113: -131.9736 | D113: 2.43543471e-69 | I113: =IF(ABS(A113)-0.001>=Sheet2!$C$6/2,Sheet2!$C$7*Sheet2!$C$8,0) -> 500 | J113: =0.5*Sheet2!$C$9*A113^2 -> 1932.1 | K113: =Sheet2!$C$10*ABS(A113) -> 1390
A114: -2.76 | B114: 500 | C114: -131.9736 | D114: 3.062961937e-69 | I114: =IF(ABS(A114)-0.001>=Sheet2!$C$6/2,Sheet2!$C$7*Sheet2!$C$8,0) -> 500 | J114: =0.5*Sheet2!$C$9*A114^2 -> 1904.4 | K114: =Sheet2!$C$10*ABS(A114) -> 1380
A115: -2.74 | B115: 500 | C115: -131.9736 | D115: 3.852181208e-69 | I115: =IF(ABS(A115)-0.001>=Sheet2!$C$6/2,Sheet2!$C$7*Sheet2!$C$8,0) -> 500 | J115: =0.5*Sheet2!$C$9*A115^2 -> 1876.9 | K115: =Sheet2!$C$10*ABS(A115) -> 1370
A116: -2.72 | B116: 500 | C116: -131.9736 | D116: 4.844754969e-69 | I116: =IF(ABS(A116)-0.001>=Sheet2!$C$6/2,Sheet2!$C$7*Sheet2!$C$8,0) -> 500 | J116: =0.5*Sheet2!$C$9*A116^2 -> 1849.6 | K116: =Sheet2!$C$10*ABS(A116) -> 1360
A117: -2.7 | B117: 500 | C117: -131.9736 | D117: 6.093080631e-69 | I117: =IF(ABS(A117)-0.001>=Sheet2!$C$6/2,Sheet2!$C$7*Sheet2!$C$8,0) -> 500 | J117: =0.5*Sheet2!$C$9*A117^2 -> 1822.5 | K117: =Sheet2!$C$10*ABS(A117) -> 1350
A118: -2.68 | B118: 500 | C118: -131.9736 | D118: 7.663056607e-69 | I118: =IF(ABS(A118)-0.001>=Sheet2!$C$6/2,Sheet2!$C$7*Sheet2!$C$8,0) -> 500 | J118: =0.5*Sheet2!$C$9*A118^2 -> 1795.6 | K118: =Sheet2!$C$10*ABS(A118) -> 1340
A119: -2.66 | B119: 500 | C119: -131.9736 | D119: 9.637561051e-69 | I119: =IF(ABS(A119)-0.001>=Sheet2!$C$6/2,Sheet2!$C$7*Sheet2!$C$8,0) -> 500 | J119: =0.5*Sheet2!$C$9*A119^2 -> 1768.9 | K119: =Sheet2!$C$10*ABS(A119) -> 1330
A120: -2.64 | B120: 500 | C120: -131.9736 | D120: 1.212082694e-68 | I120: =IF(ABS(A120)-0.001>=Sheet2!$C$6/2,Sheet2!$C$7*Sheet2!$C$8,0) -> 500 | J120: =0.5*Sheet2!$C$9*A120^2 -> 1742.4 | K120: =Sheet2!$C$10*ABS(A120) -> 1320
A121: -2.62 | B121: 500 | C121: -131.9736 | D121: 1.524394451e-68 | I121: =IF(ABS(A121)-0.001>=Sheet2!$C$6/2,Sheet2!$C$7*Sheet2!$C$8,0) -> 500 | J121: =0.5*Sheet2!$C$9*A121^2 -> 1716.1 | K121: =Sheet2!$C$10*ABS(A121) -> 1310
A122: -2.6 | B122: 500 | C122: -131.9736 | D122: 1.917178136e-68 | I122: =IF(ABS(A122)-0.001>=Sheet2!$C$6/2,Sheet2!$C$7*Sheet2!$C$8,0) -> 500 | J122: =0.5*Sheet2!$C$9*A122^2 -> 1690 | K122: =Sheet2!$C$10*ABS(A122) -> 1300
A123: -2.58 | B123: 500 | C123: -131.9736 | D123: 2.411168582e-68 | I123: =IF(ABS(A123)-0.001>=Sheet2!$C$6/2,Sheet2!$C$7*Sheet2!$C$8,0) -> 500 | J123: =0.5*Sheet2!$C$9*A123^2 -> 1664.1 | K123: =Sheet2!$C$10*ABS(A123) -> 1290
A124: -2.56 | B124: 500 | C124: -131.9736 | D124: 3.032443267e-68 | I124: =IF(ABS(A124)-0.001>=Sheet2!$C$6/2,Sheet2!$C$7*Sheet2!$C$8,0) -> 500 | J124: =0.5*Sheet2!$C$9*A124^2 -> 1638.4 | K124: =Sheet2!$C$10*ABS(A124) -> 1280
A125: -2.54 | B125: 500 | C125: -131.9736 | D125: 3.813798933e-68 | I125: =IF(ABS(A125)-0.001>=Sheet2!$C$6/2,Sheet2!$C$7*Sheet2!$C$8,0) -> 500 | J125: =0.5*Sheet2!$C$9*A125^2 -> 1612.9 | K125: =Sheet2!$C$10*ABS(A125) -> 1270
A126: -2.52 | B126: 500 | C126: -131.9736 | D126: 4.79648291e-68 | I126: =IF(ABS(A126)-0.001>=Sheet2!$C$6/2,Sheet2!$C$7*Sheet2!$C$8,0) -> 500 | J126: =0.5*Sheet2!$C$9*A126^2 -> 1587.6 | K126: =Sheet2!$C$10*ABS(A126) -> 1260
A127: -2.5 | B127: 500 | C127: -131.9736 | D127: 6.032370534e-68 | I127: =IF(ABS(A127)-0.001>=Sheet2!$C$6/2,Sheet2!$C$7*Sheet2!$C$8,0) -> 500 | J127: =0.5*Sheet2!$C$9*A127^2 -> 1562.5 | K127: =Sheet2!$C$10*ABS(A127) -> 1250
A128: -2.48 | B128: 500 | C128: -131.9736 | D128: 7.586703619e-68 | I128: =IF(ABS(A128)-0.001>=Sheet2!$C$6/2,Sheet2!$C$7*Sheet2!$C$8,0) -> 500 | J128: =0.5*Sheet2!$C$9*A128^2 -> 1537.6 | K128: =Sheet2!$C$10*ABS(A128) -> 1240
A129: -2.46 | B129: 500 | C129: -131.9736 | D129: 9.541534541e-68 | I129: =IF(ABS(A129)-0.001>=Sheet2!$C$6/2,Sheet2!$C$7*Sheet2!$C$8,0) -> 500 | J129: =0.5*Sheet2!$C$9*A129^2 -> 1512.9 | K129: =Sheet2!$C$10*ABS(A129) -> 1230
A130: -2.44 | B130: 500 | C130: =0.264*($E$2-B130) -> -131.9736 | D130: 1.200005773e-67 | I130: =IF(ABS(A130)-0.001>=Sheet2!$C$6/2,Sheet2!$C$7*Sheet2!$C$8,0) -> 500 | J130: =0.5*Sheet2!$C$9*A130^2 -> 1488.4 | K130: =Sheet2!$C$10*ABS(A130) -> 1220
A131: -2.42 | B131: 500 | C131: -131.9736 | D131: 1.509205724e-67 | I131: =IF(ABS(A131)-0.001>=Sheet2!$C$6/2,Sheet2!$C$7*Sheet2!$C$8,0) -> 500 | J131: =0.5*Sheet2!$C$9*A131^2 -> 1464.1 | K131: =Sheet2!$C$10*ABS(A131) -> 1210
A132: =+A131+0.02 -> -2.4 | B132: 500 | C132: -131.9736 | D132: =(2- 0.0004*C131)*D131-D130 -> 1.898075801e-67 | I132: =IF(ABS(A132)-0.001>=Sheet2!$C$6/2,Sheet2!$C$7*Sheet2!$C$8,0) -> 500 | J132: =0.5*Sheet2!$C$9*A132^2 -> 1440 | K132: =Sheet2!$C$10*ABS(A132) -> 1200
A133: -2.38 | B133: 500 | C133: -131.9736 | D133: 2.387144236e-67 | I133: =IF(ABS(A133)-0.001>=Sheet2!$C$6/2,Sheet2!$C$7*Sheet2!$C$8,0) -> 500 | J133: =0.5*Sheet2!$C$9*A133^2 -> 1416.1 | K133: =Sheet2!$C$10*ABS(A133) -> 1190
A134: -2.36 | B134: 500 | C134: -131.9736 | D134: 3.002228678e-67 | I134: =IF(ABS(A134)-0.001>=Sheet2!$C$6/2,Sheet2!$C$7*Sheet2!$C$8,0) -> 500 | J134: =0.5*Sheet2!$C$9*A134^2 -> 1392.4 | K134: =Sheet2!$C$10*ABS(A134) -> 1180
A135: -2.34 | B135: 500 | C135: -131.9736 | D135: 3.775799091e-67 | I135: =IF(ABS(A135)-0.001>=Sheet2!$C$6/2,Sheet2!$C$7*Sheet2!$C$8,0) -> 500 | J135: =0.5*Sheet2!$C$9*A135^2 -> 1368.9 | K135: =Sheet2!$C$10*ABS(A135) -> 1170
A136: -2.32 | B136: 500 | C136: -131.9736 | D136: 4.748691824e-67 | I136: =IF(ABS(A136)-0.001>=Sheet2!$C$6/2,Sheet2!$C$7*Sheet2!$C$8,0) -> 500 | J136: =0.5*Sheet2!$C$9*A136^2 -> 1345.6 | K136: =Sheet2!$C$10*ABS(A136) -> 1160
A137: -2.3 | B137: 500 | C137: -131.9736 | D137: 5.972265338e-67 | I137: =IF(ABS(A137)-0.001>=Sheet2!$C$6/2,Sheet2!$C$7*Sheet2!$C$8,0) -> 500 | J137: =0.5*Sheet2!$C$9*A137^2 -> 1322.5 | K137: =Sheet2!$C$10*ABS(A137) -> 1150
A138: -2.28 | B138: 500 | C138: -131.9736 | D138: 7.511111396e-67 | I138: =IF(ABS(A138)-0.001>=Sheet2!$C$6/2,Sheet2!$C$7*Sheet2!$C$8,0) -> 500 | J138: =0.5*Sheet2!$C$9*A138^2 -> 1299.6 | K138: =Sheet2!$C$10*ABS(A138) -> 1140
A139: -2.26 | B139: 500 | C139: -131.9736 | D139: 9.446464817e-67 | I139: =IF(ABS(A139)-0.001>=Sheet2!$C$6/2,Sheet2!$C$7*Sheet2!$C$8,0) -> 500 | J139: =0.5*Sheet2!$C$9*A139^2 -> 1276.9 | K139: =Sheet2!$C$10*ABS(A139) -> 1130
A140: -2.24 | B140: 500 | C140: -131.9736 | D140: 1.188049183e-66 | I140: =IF(ABS(A140)-0.001>=Sheet2!$C$6/2,Sheet2!$C$7*Sheet2!$C$8,0) -> 500 | J140: =0.5*Sheet2!$C$9*A140^2 -> 1254.4 | K140: =Sheet2!$C$10*ABS(A140) -> 1120
A141: -2.22 | B141: 500 | C141: -131.9736 | D141: 1.494168335e-66 | I141: =IF(ABS(A141)-0.001>=Sheet2!$C$6/2,Sheet2!$C$7*Sheet2!$C$8,0) -> 500 | J141: =0.5*Sheet2!$C$9*A141^2 -> 1232.1 | K141: =Sheet2!$C$10*ABS(A141) -> 1110
A142: -2.2 | B142: 500 | C142: -131.9736 | D142: 1.879163796e-66 | I142: =IF(ABS(A142)-0.001>=Sheet2!$C$6/2,Sheet2!$C$7*Sheet2!$C$8,0) -> 500 | J142: =0.5*Sheet2!$C$9*A142^2 -> 1210 | K142: =Sheet2!$C$10*ABS(A142) -> 1100
A143: -2.18 | B143: 500 | C143: -131.9736 | D143: 2.363359262e-66 | I143: =IF(ABS(A143)-0.001>=Sheet2!$C$6/2,Sheet2!$C$7*Sheet2!$C$8,0) -> 500 | J143: =0.5*Sheet2!$C$9*A143^2 -> 1188.1 | K143: =Sheet2!$C$10*ABS(A143) -> 1090
A144: -2.16 | B144: 500 | C144: -131.9736 | D144: 2.972315141e-66 | I144: =IF(ABS(A144)-0.001>=Sheet2!$C$6/2,Sheet2!$C$7*Sheet2!$C$8,0) -> 500 | J144: =0.5*Sheet2!$C$9*A144^2 -> 1166.4 | K144: =Sheet2!$C$10*ABS(A144) -> 1080
A145: -2.14 | B145: 500 | C145: -131.9736 | D145: 3.73817787e-66 | I145: =IF(ABS(A145)-0.001>=Sheet2!$C$6/2,Sheet2!$C$7*Sheet2!$C$8,0) -> 500 | J145: =0.5*Sheet2!$C$9*A145^2 -> 1144.9 | K145: =Sheet2!$C$10*ABS(A145) -> 1070
A146: -2.12 | B146: 500 | C146: -131.9736 | D146: 4.701376917e-66 | I146: =IF(ABS(A146)-0.001>=Sheet2!$C$6/2,Sheet2!$C$7*Sheet2!$C$8,0) -> 500 | J146: =0.5*Sheet2!$C$9*A146^2 -> 1123.6 | K146: =Sheet2!$C$10*ABS(A146) -> 1060
A147: -2.1 | B147: 500 | C147: -131.9736 | D147: 5.912759018e-66 | I147: =IF(ABS(A147)-0.001>=Sheet2!$C$6/2,Sheet2!$C$7*Sheet2!$C$8,0) -> 500 | J147: =0.5*Sheet2!$C$9*A147^2 -> 1102.5 | K147: =Sheet2!$C$10*ABS(A147) -> 1050
A148: -2.08 | B148: 500 | C148: -131.9736 | D148: 7.436272356e-66 | I148: =IF(ABS(A148)-0.001>=Sheet2!$C$6/2,Sheet2!$C$7*Sheet2!$C$8,0) -> 500 | J148: =0.5*Sheet2!$C$9*A148^2 -> 1081.6 | K148: =Sheet2!$C$10*ABS(A148) -> 1040
A149: -2.06 | B149: 500 | C149: -131.9736 | D149: 9.352342348e-66 | I149: =IF(ABS(A149)-0.001>=Sheet2!$C$6/2,Sheet2!$C$7*Sheet2!$C$8,0) -> 500 | J149: =0.5*Sheet2!$C$9*A149^2 -> 1060.9 | K149: =Sheet2!$C$10*ABS(A149) -> 1030
A150: -2.04 | B150: 500 | C150: -131.9736 | D150: 1.176211725e-65 | I150: =IF(ABS(A150)-0.001>=Sheet2!$C$6/2,Sheet2!$C$7*Sheet2!$C$8,0) -> 500 | J150: =0.5*Sheet2!$C$9*A150^2 -> 1040.4 | K150: =Sheet2!$C$10*ABS(A150) -> 1020
A151: -2.02 | B151: 500 | C151: -131.9736 | D151: 1.479280774e-65 | I151: =IF(ABS(A151)-0.001>=Sheet2!$C$6/2,Sheet2!$C$7*Sheet2!$C$8,0) -> 500 | J151: =0.5*Sheet2!$C$9*A151^2 -> 1020.1 | K151: =Sheet2!$C$10*ABS(A151) -> 1010
A152: -2 | B152: 500 | C152: -131.9736 | D152: 1.860440227e-65 | I152: =IF(ABS(A152)-0.001>=Sheet2!$C$6/2,Sheet2!$C$7*Sheet2!$C$8,0) -> 500 | J152: =0.5*Sheet2!$C$9*A152^2 -> 1000 | K152: =Sheet2!$C$10*ABS(A152) -> 1000
A153: -1.98 | B153: 500 | C153: -131.9736 | D153: 2.339811278e-65 | I153: =IF(ABS(A153)-0.001>=Sheet2!$C$6/2,Sheet2!$C$7*Sheet2!$C$8,0) -> 500 | J153: =0.5*Sheet2!$C$9*A153^2 -> 980.1 | K153: =Sheet2!$C$10*ABS(A153) -> 990
A154: -1.96 | B154: 500 | C154: -131.9736 | D154: 2.942699655e-65 | I154: =IF(ABS(A154)-0.001>=Sheet2!$C$6/2,Sheet2!$C$7*Sheet2!$C$8,0) -> 500 | J154: =0.5*Sheet2!$C$9*A154^2 -> 960.4 | K154: =Sheet2!$C$10*ABS(A154) -> 980
A155: -1.94 | B155: 500 | C155: -131.9736 | D155: 3.700931499e-65 | I155: =IF(ABS(A155)-0.001>=Sheet2!$C$6/2,Sheet2!$C$7*Sheet2!$C$8,0) -> 500 | J155: =0.5*Sheet2!$C$9*A155^2 -> 940.9 | K155: =Sheet2!$C$10*ABS(A155) -> 970
A156: -1.92 | B156: 500 | C156: -131.9736 | D156: 4.654533445e-65 | I156: =IF(ABS(A156)-0.001>=Sheet2!$C$6/2,Sheet2!$C$7*Sheet2!$C$8,0) -> 500 | J156: =0.5*Sheet2!$C$9*A156^2 -> 921.6 | K156: =Sheet2!$C$10*ABS(A156) -> 960
A157: -1.9 | B157: 500 | C157: -131.9736 | D157: 5.853845605e-65 | I157: =IF(ABS(A157)-0.001>=Sheet2!$C$6/2,Sheet2!$C$7*Sheet2!$C$8,0) -> 500 | J157: =0.5*Sheet2!$C$9*A157^2 -> 902.5 | K157: =Sheet2!$C$10*ABS(A157) -> 950
A158: -1.88 | B158: 500 | C158: -131.9736 | D158: 7.362178996e-65 | I158: =IF(ABS(A158)-0.001>=Sheet2!$C$6/2,Sheet2!$C$7*Sheet2!$C$8,0) -> 500 | J158: =0.5*Sheet2!$C$9*A158^2 -> 883.6 | K158: =Sheet2!$C$10*ABS(A158) -> 940
A159: -1.86 | B159: 500 | C159: -131.9736 | D159: 9.259157693e-65 | I159: =IF(ABS(A159)-0.001>=Sheet2!$C$6/2,Sheet2!$C$7*Sheet2!$C$8,0) -> 500 | J159: =0.5*Sheet2!$C$9*A159^2 -> 864.9 | K159: =Sheet2!$C$10*ABS(A159) -> 930
A160: -1.84 | B160: 500 | C160: -131.9736 | D160: 1.164492214e-64 | I160: =IF(ABS(A160)-0.001>=Sheet2!$C$6/2,Sheet2!$C$7*Sheet2!$C$8,0) -> 500 | J160: =0.5*Sheet2!$C$9*A160^2 -> 846.4 | K160: =Sheet2!$C$10*ABS(A160) -> 920
A161: -1.82 | B161: 500 | C161: -131.9736 | D161: 1.464541551e-64 | I161: =IF(ABS(A161)-0.001>=Sheet2!$C$6/2,Sheet2!$C$7*Sheet2!$C$8,0) -> 500 | J161: =0.5*Sheet2!$C$9*A161^2 -> 828.1 | K161: =Sheet2!$C$10*ABS(A161) -> 910
A162: -1.8 | B162: 500 | C162: -131.9736 | D162: 1.841903215e-64 | I162: =IF(ABS(A162)-0.001>=Sheet2!$C$6/2,Sheet2!$C$7*Sheet2!$C$8,0) -> 500 | J162: =0.5*Sheet2!$C$9*A162^2 -> 810 | K162: =Sheet2!$C$10*ABS(A162) -> 900
A163: -1.78 | B163: 500 | C163: -131.9736 | D163: 2.31649792e-64 | I163: =IF(ABS(A163)-0.001>=Sheet2!$C$6/2,Sheet2!$C$7*Sheet2!$C$8,0) -> 500 | J163: =0.5*Sheet2!$C$9*A163^2 -> 792.1 | K163: =Sheet2!$C$10*ABS(A163) -> 890
A164: -1.76 | B164: 500 | C164: -131.9736 | D164: 2.913379252e-64 | I164: =IF(ABS(A164)-0.001>=Sheet2!$C$6/2,Sheet2!$C$7*Sheet2!$C$8,0) -> 500 | J164: =0.5*Sheet2!$C$9*A164^2 -> 774.4 | K164: =Sheet2!$C$10*ABS(A164) -> 880
A165: -1.74 | B165: 500 | C165: -131.9736 | D165: 3.664056243e-64 | I165: =IF(ABS(A165)-0.001>=Sheet2!$C$6/2,Sheet2!$C$7*Sheet2!$C$8,0) -> 500 | J165: =0.5*Sheet2!$C$9*A165^2 -> 756.9 | K165: =Sheet2!$C$10*ABS(A165) -> 870
A166: -1.72 | B166: 500 | C166: -131.9736 | D166: 4.608156711e-64 | I166: =IF(ABS(A166)-0.001>=Sheet2!$C$6/2,Sheet2!$C$7*Sheet2!$C$8,0) -> 500 | J166: =0.5*Sheet2!$C$9*A166^2 -> 739.6 | K166: =Sheet2!$C$10*ABS(A166) -> 860
A167: -1.7 | B167: 500 | C167: -131.9736 | D167: 5.795519192e-64 | I167: =IF(ABS(A167)-0.001>=Sheet2!$C$6/2,Sheet2!$C$7*Sheet2!$C$8,0) -> 500 | J167: =0.5*Sheet2!$C$9*A167^2 -> 722.5 | K167: =Sheet2!$C$10*ABS(A167) -> 850
A168: -1.68 | B168: 500 | C168: -131.9736 | D168: 7.288823886e-64 | I168: =IF(ABS(A168)-0.001>=Sheet2!$C$6/2,Sheet2!$C$7*Sheet2!$C$8,0) -> 500 | J168: =0.5*Sheet2!$C$9*A168^2 -> 705.6 | K168: =Sheet2!$C$10*ABS(A168) -> 840
A169: -1.66 | B169: 500 | C169: -131.9736 | D169: 9.16690151e-64 | I169: =IF(ABS(A169)-0.001>=Sheet2!$C$6/2,Sheet2!$C$7*Sheet2!$C$8,0) -> 500 | J169: =0.5*Sheet2!$C$9*A169^2 -> 688.9 | K169: =Sheet2!$C$10*ABS(A169) -> 830
A170: -1.64 | B170: 500 | C170: -131.9736 | D170: 1.152889473e-63 | I170: =IF(ABS(A170)-0.001>=Sheet2!$C$6/2,Sheet2!$C$7*Sheet2!$C$8,0) -> 500 | J170: =0.5*Sheet2!$C$9*A170^2 -> 672.4 | K170: =Sheet2!$C$10*ABS(A170) -> 820
A171: -1.62 | B171: 500 | C171: -131.9736 | D171: 1.449949185e-63 | I171: =IF(ABS(A171)-0.001>=Sheet2!$C$6/2,Sheet2!$C$7*Sheet2!$C$8,0) -> 500 | J171: =0.5*Sheet2!$C$9*A171^2 -> 656.1 | K171: =Sheet2!$C$10*ABS(A171) -> 810
A172: -1.6 | B172: 500 | C172: -131.9736 | D172: 1.823550902e-63 | I172: =IF(ABS(A172)-0.001>=Sheet2!$C$6/2,Sheet2!$C$7*Sheet2!$C$8,0) -> 500 | J172: =0.5*Sheet2!$C$9*A172^2 -> 640 | K172: =Sheet2!$C$10*ABS(A172) -> 800
A173: -1.58 | B173: 500 | C173: -131.9736 | D173: 2.293416851e-63 | I173: =IF(ABS(A173)-0.001>=Sheet2!$C$6/2,Sheet2!$C$7*Sheet2!$C$8,0) -> 500 | J173: =0.5*Sheet2!$C$9*A173^2 -> 624.1 | K173: =Sheet2!$C$10*ABS(A173) -> 790
A174: -1.56 | B174: 500 | C174: -131.9736 | D174: 2.88435099e-63 | I174: =IF(ABS(A174)-0.001>=Sheet2!$C$6/2,Sheet2!$C$7*Sheet2!$C$8,0) -> 500 | J174: =0.5*Sheet2!$C$9*A174^2 -> 608.4 | K174: =Sheet2!$C$10*ABS(A174) -> 780
A175: -1.54 | B175: 500 | C175: -131.9736 | D175: 3.627548403e-63 | I175: =IF(ABS(A175)-0.001>=Sheet2!$C$6/2,Sheet2!$C$7*Sheet2!$C$8,0) -> 500 | J175: =0.5*Sheet2!$C$9*A175^2 -> 592.9 | K175: =Sheet2!$C$10*ABS(A175) -> 770
A176: -1.52 | B176: 500 | C176: -131.9736 | D176: 4.562242065e-63 | I176: =IF(ABS(A176)-0.001>=Sheet2!$C$6/2,Sheet2!$C$7*Sheet2!$C$8,0) -> 500 | J176: =0.5*Sheet2!$C$9*A176^2 -> 577.6 | K176: =Sheet2!$C$10*ABS(A176) -> 760
A177: -1.5 | B177: 500 | C177: -131.9736 | D177: 5.737773931e-63 | I177: =IF(ABS(A177)-0.001>=Sheet2!$C$6/2,Sheet2!$C$7*Sheet2!$C$8,0) -> 500 | J177: =0.5*Sheet2!$C$9*A177^2 -> 562.5 | K177: =Sheet2!$C$10*ABS(A177) -> 750
A178: -1.48 | B178: 500 | C178: -131.9736 | D178: 7.216199669e-63 | I178: =IF(ABS(A178)-0.001>=Sheet2!$C$6/2,Sheet2!$C$7*Sheet2!$C$8,0) -> 500 | J178: =0.5*Sheet2!$C$9*A178^2 -> 547.6 | K178: =Sheet2!$C$10*ABS(A178) -> 740
A179: -1.46 | B179: 500 | C179: -131.9736 | D179: 9.075564547e-63 | I179: =IF(ABS(A179)-0.001>=Sheet2!$C$6/2,Sheet2!$C$7*Sheet2!$C$8,0) -> 500 | J179: =0.5*Sheet2!$C$9*A179^2 -> 532.9 | K179: =Sheet2!$C$10*ABS(A179) -> 730
A180: -1.44 | B180: 500 | C180: -131.9736 | D180: 1.141402339e-62 | I180: =IF(ABS(A180)-0.001>=Sheet2!$C$6/2,Sheet2!$C$7*Sheet2!$C$8,0) -> 500 | J180: =0.5*Sheet2!$C$9*A180^2 -> 518.4 | K180: =Sheet2!$C$10*ABS(A180) -> 720
A181: -1.42 | B181: 500 | C181: -131.9736 | D181: 1.435502215e-62 | I181: =IF(ABS(A181)-0.001>=Sheet2!$C$6/2,Sheet2!$C$7*Sheet2!$C$8,0) -> 500 | J181: =0.5*Sheet2!$C$9*A181^2 -> 504.1 | K181: =Sheet2!$C$10*ABS(A181) -> 710
A182: -1.4 | B182: 500 | C182: -131.9736 | D182: 1.805381448e-62 | I182: =IF(ABS(A182)-0.001>=Sheet2!$C$6/2,Sheet2!$C$7*Sheet2!$C$8,0) -> 500 | J182: =0.5*Sheet2!$C$9*A182^2 -> 490 | K182: =Sheet2!$C$10*ABS(A182) -> 700
A183: -1.38 | B183: 500 | C183: -131.9736 | D183: 2.270565756e-62 | I183: =IF(ABS(A183)-0.001>=Sheet2!$C$6/2,Sheet2!$C$7*Sheet2!$C$8,0) -> 500 | J183: =0.5*Sheet2!$C$9*A183^2 -> 476.1 | K183: =Sheet2!$C$10*ABS(A183) -> 690
A184: -1.36 | B184: 500 | C184: -131.9736 | D184: 2.85561196e-62 | I184: =IF(ABS(A184)-0.001>=Sheet2!$C$6/2,Sheet2!$C$7*Sheet2!$C$8,0) -> 500 | J184: =0.5*Sheet2!$C$9*A184^2 -> 462.4 | K184: =Sheet2!$C$10*ABS(A184) -> 680
A185: -1.34 | B185: 500 | C185: -131.9736 | D185: 3.59140432e-62 | I185: =IF(ABS(A185)-0.001>=Sheet2!$C$6/2,Sheet2!$C$7*Sheet2!$C$8,0) -> 500 | J185: =0.5*Sheet2!$C$9*A185^2 -> 448.9 | K185: =Sheet2!$C$10*ABS(A185) -> 670
A186: -1.32 | B186: 500 | C186: -131.9736 | D186: 4.516784902e-62 | I186: =IF(ABS(A186)-0.001>=Sheet2!$C$6/2,Sheet2!$C$7*Sheet2!$C$8,0) -> 500 | J186: =0.5*Sheet2!$C$9*A186^2 -> 435.6 | K186: =Sheet2!$C$10*ABS(A186) -> 660
A187: -1.3 | B187: 500 | C187: -131.9736 | D187: 5.68060403e-62 | I187: =IF(ABS(A187)-0.001>=Sheet2!$C$6/2,Sheet2!$C$7*Sheet2!$C$8,0) -> 500 | J187: =0.5*Sheet2!$C$9*A187^2 -> 422.5 | K187: =Sheet2!$C$10*ABS(A187) -> 650
A188: -1.28 | B188: 500 | C188: -131.9736 | D188: 7.144299064e-62 | I188: =IF(ABS(A188)-0.001>=Sheet2!$C$6/2,Sheet2!$C$7*Sheet2!$C$8,0) -> 500 | J188: =0.5*Sheet2!$C$9*A188^2 -> 409.6 | K188: =Sheet2!$C$10*ABS(A188) -> 640
A189: -1.26 | B189: 500 | C189: -131.9736 | D189: 8.985137645e-62 | I189: =IF(ABS(A189)-0.001>=Sheet2!$C$6/2,Sheet2!$C$7*Sheet2!$C$8,0) -> 500 | J189: =0.5*Sheet2!$C$9*A189^2 -> 396.9 | K189: =Sheet2!$C$10*ABS(A189) -> 630
A190: -1.24 | B190: 500 | C190: -131.9736 | D190: 1.130029661e-61 | I190: =IF(ABS(A190)-0.001>=Sheet2!$C$6/2,Sheet2!$C$7*Sheet2!$C$8,0) -> 500 | J190: =0.5*Sheet2!$C$9*A190^2 -> 384.4 | K190: =Sheet2!$C$10*ABS(A190) -> 620
A191: -1.22 | B191: 500 | C191: -131.9736 | D191: 1.421199191e-61 | I191: =IF(ABS(A191)-0.001>=Sheet2!$C$6/2,Sheet2!$C$7*Sheet2!$C$8,0) -> 500 | J191: =0.5*Sheet2!$C$9*A191^2 -> 372.1 | K191: =Sheet2!$C$10*ABS(A191) -> 610
A192: -1.2 | B192: 500 | C192: -131.9736 | D192: 1.787393029e-61 | I192: =IF(ABS(A192)-0.001>=Sheet2!$C$6/2,Sheet2!$C$7*Sheet2!$C$8,0) -> 500 | J192: =0.5*Sheet2!$C$9*A192^2 -> 360 | K192: =Sheet2!$C$10*ABS(A192) -> 600
A193: -1.18 | B193: 500 | C193: -131.9736 | D193: 2.247942345e-61 | I193: =IF(ABS(A193)-0.001>=Sheet2!$C$6/2,Sheet2!$C$7*Sheet2!$C$8,0) -> 500 | J193: =0.5*Sheet2!$C$9*A193^2 -> 348.1 | K193: =Sheet2!$C$10*ABS(A193) -> 590
A194: -1.16 | B194: 500 | C194: =0.264*($E$2-B194) -> -131.9736 | D194: 2.827159279e-61 | I194: =IF(ABS(A194)-0.001>=Sheet2!$C$6/2,Sheet2!$C$7*Sheet2!$C$8,0) -> 500 | J194: =0.5*Sheet2!$C$9*A194^2 -> 336.4 | K194: =Sheet2!$C$10*ABS(A194) -> 580
A195: -1.14 | B195: 500 | C195: -131.9736 | D195: 3.555620368e-61 | I195: =IF(ABS(A195)-0.001>=Sheet2!$C$6/2,Sheet2!$C$7*Sheet2!$C$8,0) -> 500 | J195: =0.5*Sheet2!$C$9*A195^2 -> 324.9 | K195: =Sheet2!$C$10*ABS(A195) -> 570
A196: =+A195+0.02 -> -1.12 | B196: 500 | C196: -131.9736 | D196: =(2- 0.0004*C195)*D195-D194 -> 4.471780664e-61 | I196: =IF(ABS(A196)-0.001>=Sheet2!$C$6/2,Sheet2!$C$7*Sheet2!$C$8,0) -> 500 | J196: =0.5*Sheet2!$C$9*A196^2 -> 313.6 | K196: =Sheet2!$C$10*ABS(A196) -> 560
A197: -1.1 | B197: 500 | C197: -131.9736 | D197: 5.624003758e-61 | I197: =IF(ABS(A197)-0.001>=Sheet2!$C$6/2,Sheet2!$C$7*Sheet2!$C$8,0) -> 500 | J197: =0.5*Sheet2!$C$9*A197^2 -> 302.5 | K197: =Sheet2!$C$10*ABS(A197) -> 550
A198: -1.08 | B198: 500 | C198: -131.9736 | D198: 7.073114861e-61 | I198: =IF(ABS(A198)-0.001>=Sheet2!$C$6/2,Sheet2!$C$7*Sheet2!$C$8,0) -> 500 | J198: =0.5*Sheet2!$C$9*A198^2 -> 291.6 | K198: =Sheet2!$C$10*ABS(A198) -> 540
A199: -1.06 | B199: 500 | C199: -131.9736 | D199: 8.895611736e-61 | I199: =IF(ABS(A199)-0.001>=Sheet2!$C$6/2,Sheet2!$C$7*Sheet2!$C$8,0) -> 500 | J199: =0.5*Sheet2!$C$9*A199^2 -> 280.9 | K199: =Sheet2!$C$10*ABS(A199) -> 530
A200: -1.04 | B200: 500 | C200: -131.9736 | D200: 1.118770297e-60 | I200: =IF(ABS(A200)-0.001>=Sheet2!$C$6/2,Sheet2!$C$7*Sheet2!$C$8,0) -> 500 | J200: =0.5*Sheet2!$C$9*A200^2 -> 270.4 | K200: =Sheet2!$C$10*ABS(A200) -> 520
... 302 more rows

Sheet Sheet2
C1: Solving the one-dimensional, time-independent Schroedinger equation
A2: Choose your potential:
A3: Square well
A4: Harmonic well
A5: Triangular well
A6: Square well width: (10-10 m) | C6: =F6/10 -> 2 | F6: 20
A7: Square well depth: (eV) | C7: =F7*10 -> 500 | F7: 50
A8: Square well asymmetry: (left height/right height): | C8: =F8/10 -> 1 | F8: 10
A9: Harmonic oscillator spring constant: (eV/(10-20 m2)) | C9: =F9*10 -> 500 | F9: 50
A10: Triangular well slope: (eV/10-10 m) | C10: =F10*10 -> 500 | F10: 50
A13: Vary the energy:
A15: Energy (eV): | B15: =C15/D15 -> 0.1 | C15: 1 | D15: 10
